bitfinex-derivatives/quotes_SOLF0:USTF0_20260304
["timestamp","ask_amount","ask_price","bid_price","bid_amount"]
[1772615567387,37.5927573,89.53,89.461,9.86270256]
[1772615567584,37.5927573,89.53,89.457,36.88489764]
[1772615568682,34.80604533,89.526,89.457,36.88489764]
[1772615568884,34.80604533,89.526,89.448,36.5061832]
[1772615569784,34.80604533,89.512,89.448,36.5061832]
[1772615570589,34.80604533,89.539,89.461,36.5061832]
[1772615570993,10.053,89.519,89.461,36.5061832]
[1772615572190,44.85804533,89.53,89.463,36.5061832]
[1772615572381,34.80604533,89.559,89.463,36.5061832]
[1772615572785,10.051,89.54,89.477,36.5061832]
[1772615572986,34.80604533,89.559,89.477,36.5061832]
[1772615573785,34.80604533,89.559,89.49,36.5061832]
[1772615574295,34.80604533,89.599,89.49,36.5061832]
[1772615574494,4.56022467,89.6,89.491,36.5061832]
[1772615574495,34.80604533,89.561,89.491,36.5061832]
[1772615574989,34.80604533,89.561,89.462,36.5061832]
[1772615575293,34.80604533,89.561,89.46,4.56022467]
[1772615575294,34.80604533,89.543,89.469,36.5061832]
[1772615576189,34.80604533,89.543,89.477,10.058]
[1772615576390,34.80604533,89.543,89.478,36.5061832]
[1772615578387,34.80604533,89.541,89.478,36.5061832]
[1772615578791,44.85704533,89.538,89.478,36.5061832]
[1772615579092,34.80604533,89.538,89.478,36.5061832]
[1772615579292,34.80604533,89.579,89.487,10.056]
[1772615580392,4.56022467,89.58,89.487,46.5621832]
[1772615580393,34.80604533,89.557,89.487,46.5621832]
[1772615580692,34.80604533,89.557,89.492,36.5061832]
[1772615581491,34.80604533,89.557,89.509,10.054]
[1772615581687,34.80604533,89.575,89.508,36.5061832]
[1772615582191,34.80604533,89.575,89.461,19.57595545]
[1772615582192,34.80604533,89.594,89.511,36.5061832]
[1772615582498,34.80604533,89.611,89.531,36.5061832]
[1772615583296,34.80604533,89.611,89.549,36.5061832]
[1772615583504,34.80604533,89.63,89.551,36.5061832]
[1772615583897,34.80604533,89.63,89.576,10.047]
[1772615584396,34.80604533,89.63,89.568,36.5061832]
[1772615585595,34.80604533,89.63,89.57,10.047]
[1772615585803,34.80604533,89.63,89.568,36.5061832]
[1772615588291,34.80604533,89.63,89.579,10.046]
[1772615590804,34.80604533,89.63,89.569,10.047]
[1772615592604,34.80604533,89.63,89.568,36.5061832]
[1772615592903,34.80604533,89.63,89.549,36.5061832]
[1772615593201,34.80604533,89.608,89.521,36.5061832]
[1772615593894,34.80604533,89.608,89.503,9.86270256]
[1772615593895,34.80604533,89.626,89.541,36.5061832]
[1772615594098,34.80604533,89.626,89.561,36.5061832]
[1772615594500,10.041,89.625,89.561,36.5061832]
[1772615595207,34.80604533,89.649,89.536,36.5061832]
[1772615597300,10.042,89.614,89.548,36.5061832]
[1772615598704,10.043,89.605,89.548,36.5061832]
[1772615599007,34.80604533,89.619,89.548,36.5061832]
[1772615599204,10.042,89.614,89.55,36.34868805]
[1772615600308,34.80604533,89.619,89.55,36.34868805]
[1772615601212,10.042,89.615,89.552,10.049]
[1772615601404,10.042,89.615,89.553,33.56310196]
[1772615602303,36.93732213,89.654,89.569,33.56310196]
[1772615602602,36.93732213,89.654,89.591,33.56310196]
[1772615603007,36.93732213,89.654,89.594,10.044]
[1772615603197,36.93732213,89.654,89.594,43.60710196]
[1772615603400,36.93732213,89.654,89.594,10.044]
[1772615603605,36.93732213,89.684,89.611,33.56310196]
[1772615604412,186.98216564,89.685,89.611,33.56310196]
[1772615604413,36.93732213,89.673,89.611,33.56310196]
[1772615604810,10.037,89.66,89.592,33.56310196]
[1772615605300,36.93732213,89.673,89.592,33.56310196]
[1772615606308,36.93732213,89.67,89.602,10.044]
[1772615606714,36.93732213,89.67,89.603,33.56310196]
[1772615607609,36.93732213,89.67,89.606,10.043]
[1772615608108,186.98216564,89.685,89.551,33.56310196]
[1772615608109,36.93732213,89.659,89.551,33.56310196]
[1772615608610,36.93732213,89.629,89.56,10.048]
[1772615608814,36.93732213,89.629,89.551,33.56310196]
[1772615609411,36.93732213,89.627,89.556,33.56310196]
[1772615610908,36.93732213,89.627,89.558,33.56310196]
[1772615611108,36.93732213,89.669,89.558,33.56310196]
[1772615611713,36.93732213,89.645,89.558,33.56310196]
[1772615612813,36.93732213,89.631,89.558,33.56310196]
[1772615613207,36.93732213,89.631,89.561,10.048]
[1772615613208,10.041,89.627,89.561,10.048]
[1772615613413,36.93732213,89.631,89.558,33.56310196]
[1772615614213,10.042,89.619,89.558,33.56310196]
[1772615615016,10.042,89.619,89.559,10.048]
[1772615615215,36.93732213,89.631,89.56,33.56310196]
[1772615615216,10.041,89.628,89.56,33.56310196]
[1772615615510,10.041,89.628,89.562,33.56310196]
[1772615615817,10.041,89.628,89.563,41.56200859]
[1772615616019,10.041,89.628,89.564,41.56200859]
[1772615616318,10.041,89.628,89.565,18.04690663]
[1772615616509,10.041,89.628,89.566,41.56200859]
[1772615616814,10.042,89.62,89.566,33.56310196]
[1772615617219,36.93732213,89.619,89.539,33.56310196]
[1772615617411,36.93732213,89.619,89.54,8.01920256]
[1772615617609,36.93732213,89.619,89.542,10.05]
[1772615617813,36.93732213,89.619,89.543,41.58230452]
[1772615618019,36.93732213,89.619,89.544,8.01920256]
[1772615618911,10.044,89.603,89.545,10.05]
[1772615619111,10.044,89.603,89.544,41.58230452]
[1772615619112,36.93732213,89.679,89.561,33.56310196]
[1772615619313,36.93732213,89.679,89.581,33.56310196]
[1772615619512,36.93732213,89.679,89.583,33.56310196]
[1772615619710,36.93732213,89.679,89.585,33.56310196]
[1772615619910,10.037,89.658,89.593,33.56310196]
[1772615620118,36.93732213,89.679,89.594,41.58230452]
[1772615620415,36.93732213,89.668,89.601,33.56310196]
[1772615620814,10.038,89.649,89.601,33.56310196]
[1772615621023,10.038,89.649,89.58,4.55579444]
[1772615621024,36.93732213,89.668,89.603,33.56310196]
[1772615621221,36.93732213,89.668,89.604,41.58108104]
[1772615621423,36.93732213,89.668,89.605,8.01797908]
[1772615621823,10.037,89.665,89.605,8.01797908]
[1772615622720,36.93732213,89.668,89.605,8.01797908]
[1772615624125,36.93732213,89.668,89.606,8.04389231]
[1772615624424,36.93732213,89.668,89.607,8.04389231]
[1772615624623,10.038,89.65,89.608,8.04389231]
[1772615624922,36.93732213,89.668,89.585,33.56310196]
[1772615625123,10.038,89.651,89.589,33.56310196]
[1772615625324,10.038,89.651,89.59,8.04407594]
[1772615625625,10.038,89.651,89.591,8.04407594]
[1772615625814,36.93732213,89.651,89.592,8.04407594]
[1772615626018,36.93732213,89.651,89.593,8.04407594]
[1772615626219,36.93732213,89.651,89.594,8.04407594]
[1772615626420,36.93732213,89.651,89.595,8.04407594]
[1772615626621,36.93732213,89.651,89.596,8.04407594]
[1772615626818,36.93732213,89.746,89.621,33.56310196]
[1772615627023,36.93732213,89.729,89.623,33.56310196]
[1772615627327,10.033,89.701,89.625,33.56310196]
[1772615627526,36.93732213,89.7,89.627,33.56310196]
[1772615627723,36.93732213,89.7,89.629,33.56310196]
[1772615627936,36.93732213,89.7,89.613,9.73371937]
[1772615627937,36.93732213,89.694,89.63,8.04407594]
[1772615628226,36.93732213,89.694,89.611,33.56310196]
[1772615628227,36.93732213,89.694,89.631,8.04407594]
[1772615628426,36.93732213,89.694,89.632,8.04407594]
[1772615628626,10.035,89.682,89.633,8.04407594]
[1772615628818,36.93732213,89.694,89.634,8.04407594]
[1772615629017,36.93732213,89.694,89.635,8.04407594]
[1772615629225,10.034,89.692,89.636,8.04407594]
[1772615629417,34.27252694,89.691,89.637,8.04407594]
[1772615629620,34.27252694,89.691,89.638,8.04407594]
[1772615629820,10.034,89.689,89.639,8.04407594]
[1772615630025,34.27252694,89.688,89.64,8.04407594]
[1772615630220,34.27252694,89.688,89.62,39.2914726]
[1772615630421,34.27252694,89.688,89.621,8.03109465]
[1772615630626,34.27252694,89.688,89.622,8.03109465]
[1772615630824,34.27252694,89.688,89.623,8.03109465]
[1772615631025,34.27252694,89.688,89.624,8.03109465]
[1772615631225,10.034,89.687,89.625,8.03109465]
[1772615631529,10.034,89.687,89.626,8.03109465]
[1772615631727,10.034,89.687,89.627,8.03109465]
[1772615631928,10.034,89.687,89.62,39.2914726]
[1772615631929,10.034,89.687,89.628,8.03109465]
[1772615632225,10.034,89.687,89.629,8.03109465]
[1772615632421,10.034,89.684,89.63,8.03109465]
[1772615632631,10.034,89.684,89.631,8.03109465]
[1772615632824,34.27252694,89.683,89.603,34.73567816]
[1772615633130,10.035,89.68,89.605,34.73567816]
[1772615633332,10.035,89.68,89.607,34.73567816]
[1772615633532,10.035,89.68,89.609,34.73567816]
[1772615633830,10.035,89.68,89.608,8.03166957]
[1772615633831,10.035,89.68,89.611,34.73567816]
[1772615634032,34.27252694,89.683,89.62,34.73567816]
[1772615634231,34.27252694,89.683,89.622,34.73567816]
[1772615634431,34.27252694,89.683,89.623,8.03166957]
[1772615634632,34.27252694,89.683,89.56,13.05063697]
[1772615634633,34.27252694,89.67,89.603,34.73567816]
[1772615634834,34.27252694,89.67,89.604,8.03015346]
[1772615635131,34.27252694,89.67,89.605,8.03015346]
[1772615635430,10.038,89.655,89.606,8.03015346]
[1772615635628,34.27252694,89.654,89.607,8.03015346]
[1772615635831,34.27252694,89.654,89.57,34.73567816]
[1772615636035,34.27252694,89.654,89.572,34.73567816]
[1772615636223,34.27252694,89.654,89.574,34.73567816]
[1772615636427,34.27252694,89.654,89.576,34.73567816]
[1772615636628,44.31152694,89.644,89.577,8.03590741]
[1772615636828,34.27252694,89.643,89.578,8.03590741]
[1772615637030,34.27252694,89.643,89.579,8.03590741]
[1772615637230,34.27252694,89.643,89.58,8.03590741]
[1772615637429,34.27252694,89.643,89.576,34.73567816]
[1772615637430,34.27252694,89.643,89.581,8.03590741]
[1772615637736,34.27252694,89.643,89.577,34.73567816]
[1772615637737,34.27252694,89.643,89.582,8.03590741]
[1772615637935,34.27252694,89.643,89.583,8.03590741]
[1772615638135,34.27252694,89.643,89.584,8.03590741]
[1772615638331,34.27252694,89.643,89.577,34.73567816]
[1772615638332,10.039,89.641,89.585,8.03590741]
[1772615638536,10.039,89.641,89.586,8.03590741]
[1772615638835,34.27252694,89.64,89.587,8.03590741]
[1772615639035,34.27252694,89.64,89.588,8.03590741]
[1772615639232,47.93239033,90.026,89.611,34.73567816]
[1772615639233,34.27252694,89.679,89.611,34.73567816]
[1772615639434,34.27252694,89.729,89.631,34.73567816]
[1772615639635,34.27252694,89.729,89.633,34.73567816]
[1772615639936,10.032,89.708,89.644,34.73567816]
[1772615640140,34.27252694,89.729,89.646,34.73567816]
[1772615640432,10.031,89.718,89.648,34.73567816]
[1772615640632,10.031,89.718,89.649,8.02432033]
[1772615640837,34.27252694,89.729,89.651,34.73567816]
[1772615641039,34.27252694,89.729,89.67,39.2914726]
[1772615641332,34.27252694,89.753,89.68,34.73567816]
[1772615641532,34.27252694,89.753,89.67,4.55579444]
[1772615641533,34.27252694,89.753,89.682,34.73567816]
[1772615641735,10.027,89.752,89.683,42.74337829]
[1772615642038,34.27252694,89.751,89.684,8.00770013]
[1772615642337,34.27252694,89.751,89.683,34.73567816]
[1772615643229,10.027,89.748,89.683,34.73567816]
[1772615643427,34.27252694,89.747,89.683,34.73567816]
[1772615643831,34.27252694,89.747,89.661,34.73567816]
[1772615644027,34.27252694,89.747,89.662,7.99107054]
[1772615644231,34.27252694,89.747,89.663,7.99107054]
[1772615644438,34.27252694,89.747,89.664,7.99107054]
[1772615644735,34.27252694,89.747,89.665,7.99107054]
[1772615644931,34.27252694,89.747,89.666,42.7267487]
[1772615645136,34.27252694,89.747,89.66,4.55579444]
[1772615645137,34.27252694,89.747,89.667,42.7267487]
[1772615645340,10.029,89.737,89.668,7.99107054]
[1772615645640,34.27252694,89.747,89.668,42.7267487]
[1772615645941,34.27252694,89.768,89.67,34.73567816]
[1772615646140,34.27252694,89.768,89.681,34.73567816]
[1772615647037,34.27252694,89.753,89.681,34.73567816]
[1772615647643,10.028,89.744,89.681,34.73567816]
[1772615648039,34.27252694,89.743,89.681,34.73567816]
[1772615648639,34.27252694,89.741,89.681,34.73567816]
[1772615649536,34.27252694,89.737,89.662,34.73567816]
[1772615650241,10.029,89.734,89.664,34.73567816]
[1772615650636,10.029,89.734,89.663,10.037]
[1772615650637,10.029,89.734,89.666,34.73567816]
[1772615651044,4.55579444,89.77,89.666,34.73567816]
[1772615651045,34.27252694,89.73,89.666,34.73567816]
[1772615651544,34.27252694,89.73,89.65,39.2914726]
[1772615651742,34.27252694,89.73,89.652,34.73567816]
[1772615651944,34.27252694,89.72,89.653,8.05342215]
[1772615652147,34.27252694,89.72,89.652,34.73567816]
[1772615652347,34.27252694,89.717,89.652,34.73567816]
[1772615652845,34.27252694,89.717,89.631,34.73567816]
[1772615653045,34.27252694,89.717,89.632,8.05660076]
[1772615653241,34.27252694,89.717,89.581,13.05063697]
[1772615653242,34.27252694,89.696,89.612,34.73567816]
[1772615653448,34.27252694,89.696,89.613,8.0594299]
[1772615653643,34.27252694,89.696,89.614,42.79510806]
[1772615653942,34.27252694,89.729,89.624,34.73567816]
[1772615654141,34.27252694,89.729,89.626,34.73567816]
[1772615654342,34.27252694,89.7,89.628,34.73567816]
[1772615655239,34.27252694,89.69,89.628,34.73567816]
[1772615655446,34.27252694,89.69,89.615,10.042]
[1772615655641,34.27252694,89.69,89.617,34.73567816]
[1772615656244,10.035,89.678,89.618,8.06340703]
[1772615656442,10.035,89.678,89.619,8.06340703]
[1772615656642,10.035,89.678,89.617,34.73567816]
[1772615656843,10.035,89.678,89.618,8.06470179]
[1772615657046,10.035,89.678,89.617,34.73567816]
[1772615657240,10.035,89.678,89.618,8.064595]
[1772615657444,10.035,89.678,89.619,8.064595]
[1772615657744,34.27252694,89.686,89.618,10.042]
[1772615657945,34.27252694,89.686,89.619,8.06436946]
[1772615658146,34.27252694,89.686,89.618,10.042]
[1772615658346,34.27252694,89.686,89.619,8.06535272]
[1772615658552,155.942,89.774,89.6,4.55579444]
[1772615658553,33.25749405,89.684,89.6,4.55579444]
[1772615658744,33.25749405,89.684,89.601,8.06916344]
[1772615659049,33.25749405,89.684,89.602,8.06916344]
[1772615659251,33.25749405,89.684,89.603,8.06916344]
[1772615659447,10.037,89.658,89.599,32.87881112]
[1772615660158,10.039,89.647,89.599,32.87881112]
[1772615660650,10.039,89.647,89.581,32.59958988]
[1772615660852,44.57807851,89.656,89.587,32.59958988]
[1772615661050,44.57807851,89.656,89.589,32.59958988]
[1772615661253,10.038,89.649,89.589,32.59958988]
[1772615661843,10.038,89.649,89.535,13.05063697]
[1772615661844,34.54007851,89.636,89.57,10.047]
[1772615662052,34.54007851,89.636,89.571,8.08781431]
[1772615662249,34.54007851,89.636,89.581,10.046]
[1772615662456,34.54007851,89.636,89.582,8.08781431]
[1772615662654,34.54007851,89.636,89.575,32.59958988]
[1772615662849,10.04,89.632,89.575,32.59958988]
[1772615663257,10.04,89.632,89.576,8.09583476]
[1772615663454,10.04,89.632,89.575,32.59958988]
[1772615663645,10.04,89.632,89.576,8.09450173]
[1772615663846,10.039,89.643,89.581,32.59958988]
[1772615664051,34.54007851,89.642,89.581,32.59958988]
[1772615664245,34.54007851,89.642,89.551,32.59958988]
[1772615664554,34.54007851,89.62,89.553,32.59958988]
[1772615664752,34.54007851,89.62,89.554,8.0965614]
[1772615665052,34.54007851,89.62,89.536,32.59958988]
[1772615665256,34.54007851,89.62,89.537,8.10370642]
[1772615665464,34.54007851,89.62,89.538,8.10370642]
[1772615665653,34.54007851,89.601,89.539,8.10370642]
[1772615665852,34.54007851,89.601,89.54,8.10370642]
[1772615666056,34.54007851,89.601,89.541,8.10370642]
[1772615666352,34.54007851,89.601,89.536,32.59958988]
[1772615666557,34.54007851,89.601,89.537,8.09614433]
[1772615666752,34.54007851,89.601,89.538,8.09614433]
[1772615666956,10.043,89.604,89.54,32.59958988]
[1772615667247,34.54007851,89.603,89.54,32.59958988]
[1772615667449,34.54007851,89.599,89.52,32.59958988]
[1772615667650,34.54007851,89.599,89.522,32.59958988]
[1772615667847,34.54007851,89.599,89.524,32.59958988]
[1772615668156,34.54007851,89.599,89.525,40.69154347]
[1772615668357,34.54007851,89.599,89.526,40.69154347]
[1772615668559,34.54007851,89.599,89.527,8.09195359]
[1772615668754,34.54007851,89.599,89.526,32.59958988]
[1772615668950,34.54007851,89.599,89.527,40.68919733]
[1772615669254,10.045,89.591,89.527,32.59958988]
[1772615669749,34.54007851,89.599,89.53,32.59958988]
[1772615670455,34.54007851,89.594,89.53,32.59958988]
[1772615670658,34.54007851,89.594,89.532,32.59958988]
[1772615671959,34.54007851,89.594,89.535,32.59958988]
[1772615672560,10.042,89.616,89.546,32.59958988]
[1772615673154,10.042,89.613,89.55,10.049]
[1772615673455,34.54007851,89.615,89.551,32.59958988]
[1772615673861,34.54007851,89.615,89.561,10.048]
[1772615674656,34.54007851,89.633,89.565,42.64758988]
[1772615674857,176.162,89.688,89.566,32.59958988]
[1772615674858,34.54007851,89.65,89.566,32.59958988]
[1772615675655,34.54007851,89.647,89.578,10.046]
[1772615676157,34.54007851,89.647,89.578,42.64558988]
[1772615676864,10.039,89.641,89.578,42.64558988]
[1772615677155,34.54007851,89.647,89.584,32.59958988]
[1772615677753,34.54007851,89.647,89.596,32.59958988]
[1772615678759,44.58207851,89.62,89.56,32.59958988]
[1772615678964,34.54007851,89.619,89.56,32.59958988]
[1772615679364,10.04,89.639,89.573,32.59958988]
[1772615679664,34.54007851,89.638,89.573,32.59958988]
[1772615680258,10.04,89.633,89.573,32.59958988]
[1772615680763,44.58007851,89.633,89.573,32.59958988]
[1772615681161,44.58007851,89.633,89.515,9.73371937]
[1772615681162,34.54007851,89.709,89.591,32.59958988]
[1772615681362,34.54007851,89.709,89.611,32.59958988]
[1772615681560,34.54007851,89.709,89.616,42.64158988]
[1772615681768,34.54007851,89.675,89.616,32.59958988]
[1772615683067,10.034,89.69,89.62,32.59958988]
[1772615683265,34.54007851,89.709,89.62,32.59958988]
[1772615683460,34.54007851,89.709,89.631,32.59958988]
[1772615683667,34.54007851,89.709,89.643,32.59958988]
[1772615684370,34.54007851,89.698,89.643,32.59958988]
[1772615685069,34.54007851,89.698,89.579,9.73371937]
[1772615685070,34.54007851,89.698,89.625,32.59958988]
[1772615685568,10.034,89.687,89.625,32.59958988]
[1772615685768,34.54007851,89.686,89.625,32.59958988]
[1772615685971,34.54007851,89.729,89.625,32.59958988]
[1772615686169,34.54007851,89.704,89.628,32.59958988]
[1772615686566,34.54007851,89.704,89.61,37.15402007]
[1772615686768,34.54007851,89.704,89.61,32.59958988]
[1772615686972,10.036,89.669,89.61,32.59958988]
[1772615687267,34.54007851,89.709,89.61,37.15402007]
[1772615687474,34.54007851,89.709,89.619,32.59958988]
[1772615687772,34.54007851,89.709,89.621,32.59958988]
[1772615688068,34.54007851,89.705,89.621,32.59958988]
[1772615688769,41.8453819,89.703,89.625,34.85081654]
[1772615688974,31.8133819,89.703,89.625,34.85081654]
[1772615689169,31.8133819,89.703,89.64,34.85081654]
[1772615690367,31.8133819,89.703,89.621,34.85081654]
[1772615691074,10.034,89.692,89.623,34.85081654]
[1772615691274,31.8133819,89.691,89.623,34.85081654]
[1772615692370,31.8133819,89.684,89.623,34.85081654]
[1772615693075,31.8133819,89.684,89.601,34.85081654]
[1772615693273,4.55443019,89.67,89.571,34.85081654]
[1772615693465,10.039,89.647,89.575,34.85081654]
[1772615693670,41.8523819,89.647,89.575,34.85081654]
[1772615693977,31.8133819,89.646,89.575,34.85081654]
[1772615694476,31.8133819,89.646,89.576,34.85081654]
[1772615694672,31.8133819,89.646,89.578,34.85081654]
[1772615694866,31.8133819,89.646,89.58,34.85081654]
[1772615695070,31.8133819,89.646,89.585,34.85081654]
[1772615697379,31.8133819,89.645,89.566,34.85081654]
[1772615697582,31.8133819,89.645,89.567,7.99066239]
[1772615697878,31.8133819,89.645,89.566,34.85081654]
[1772615697879,31.8133819,89.645,89.568,7.99066239]
[1772615698079,31.8133819,89.645,89.569,7.99066239]
[1772615698280,31.8133819,89.645,89.55,4.55443019]
[1772615698281,10.04,89.637,89.571,34.85081654]
[1772615698479,10.04,89.637,89.572,7.99066239]
[1772615698882,10.04,89.637,89.572,42.84147893]
[1772615699177,10.04,89.637,89.573,7.99066239]
[1772615700171,4.55443019,89.66,89.573,42.84147893]
[1772615700172,31.8133819,89.632,89.573,42.84147893]
[1772615700372,31.8133819,89.659,89.575,34.85081654]
[1772615700571,31.8133819,89.687,89.62,4.55443019]
[1772615700771,31.8133819,89.687,89.621,42.84147893]
[1772615700979,31.8133819,89.687,89.623,34.85081654]
[1772615701176,31.8133819,89.687,89.627,69.70163308]
[1772615701381,31.8133819,89.687,89.628,42.84147893]
[1772615701578,31.8133819,89.687,89.629,7.99066239]
[1772615701782,31.8133819,89.687,89.63,7.97845516]
[1772615701982,31.8133819,89.687,89.628,34.85081654]
[1772615702579,31.8133819,89.687,89.601,34.85081654]
[1772615702781,31.8133819,89.675,89.603,34.85081654]
[1772615702975,31.8133819,89.675,89.605,34.85081654]
[1772615703176,4.55443019,89.71,89.606,7.98138613]
[1772615703177,31.8133819,89.66,89.606,7.98138613]
[1772615703377,31.8133819,89.66,89.587,34.85081654]
[1772615703589,31.8133819,89.66,89.522,19.49515122]
[1772615703590,31.8133819,89.649,89.562,34.85081654]
[1772615703794,31.8133819,89.628,89.562,34.85081654]
[1772615704690,31.8133819,89.627,89.543,34.85081654]
[1772615705085,31.8133819,89.647,89.543,34.85081654]
[1772615705286,31.8133819,89.647,89.571,34.85081654]
[1772615705490,31.8133819,89.709,89.593,34.85081654]
[1772615706990,31.8133819,89.688,89.613,34.85081654]
[1772615707784,31.8133819,89.686,89.613,34.85081654]
[1772615708191,10.035,89.678,89.613,34.85081654]
[1772615708389,31.8133819,89.686,89.591,34.85081654]
[1772615708991,31.8133819,89.666,89.57,34.85081654]
[1772615709390,31.8133819,89.666,89.57,39.40524673]
[1772615709789,31.8133819,89.661,89.582,34.85081654]
[1772615710387,31.8133819,89.661,89.601,34.85081654]
[1772615710589,31.8133819,89.689,89.601,34.85081654]
[1772615711095,31.8133819,89.689,89.619,34.85081654]
[1772615711292,31.8133819,89.689,89.598,34.85081654]
[1772615711790,10.036,89.669,89.601,10.044]
[1772615712188,10.036,89.669,89.598,34.85081654]
[1772615712391,10.036,89.669,89.6,44.89481654]
[1772615712587,10.036,89.669,89.601,34.85081654]
[1772615713094,10.036,89.669,89.59,4.55443019]
[1772615713095,10.036,89.669,89.603,34.85081654]
[1772615713398,31.8133819,89.713,89.631,34.85081654]
[1772615713596,4.55443019,89.74,89.631,34.85081654]
[1772615713597,31.8133819,89.759,89.631,34.85081654]
[1772615713798,10.03,89.723,89.659,34.85081654]
[1772615714699,31.8133819,89.734,89.659,34.85081654]
[1772615714992,31.8133819,89.774,89.67,39.40524673]
[1772615715399,31.8133819,89.745,89.67,34.85081654]
[1772615715992,31.8133819,89.741,89.67,34.85081654]
[1772615716597,31.8133819,89.741,89.672,34.85081654]
[1772615716794,31.8133819,89.76,89.674,34.85081654]
[1772615716999,31.8133819,89.76,89.64,156.174]
[1772615717000,31.8133819,89.774,89.702,34.85081654]
[1772615717598,31.8133819,89.771,89.683,34.85081654]
[1772615717794,31.8133819,89.771,89.684,7.87461058]
[1772615718098,31.8133819,89.771,89.686,10.034]
[1772615718294,31.8133819,89.771,89.687,40.26924786]
[1772615718491,31.8133819,89.771,89.689,32.39463728]
[1772615718698,31.8133819,89.771,89.694,32.39463728]
[1772615719000,31.8133819,89.771,89.696,32.39463728]
[1772615719197,31.8133819,89.771,89.698,32.39463728]
[1772615719399,31.8133819,89.771,89.702,32.39463728]
[1772615719718,32.37764786,89.799,89.721,32.39463728]
[1772615719894,32.37764786,89.782,89.721,32.39463728]
[1772615720395,32.37764786,89.782,89.681,32.39463728]
[1772615720594,32.37764786,89.757,89.664,32.39463728]
[1772615720898,32.37764786,89.749,89.664,32.39463728]
[1772615721200,32.37764786,89.749,89.68,42.42963728]
[1772615721396,155.844,89.831,89.625,156.2]
[1772615721397,31.71106274,89.779,89.681,31.62489722]
[1772615721604,31.71106274,89.766,89.691,31.62489722]
[1772615722295,31.71106274,89.799,89.703,31.62489722]
[1772615722897,31.71106274,89.779,89.706,31.62489722]
[1772615723398,31.71106274,89.779,89.708,31.62489722]
[1772615723598,155.824,89.842,89.656,156.147]
[1772615723599,31.71106274,89.809,89.711,31.62489722]
[1772615724396,31.71106274,89.8,89.731,31.62489722]
[1772615724897,128.55443019,89.83,89.731,31.62489722]
[1772615724898,31.71106274,89.829,89.731,31.62489722]
[1772615725103,31.71106274,89.829,89.741,31.62489722]
[1772615725602,31.71106274,89.821,89.743,31.62489722]
[1772615726302,31.71106274,89.818,89.745,10.028]
[1772615726502,31.71106274,89.818,89.746,31.62489722]
[1772615726702,10.02,89.816,89.746,31.62489722]
[1772615727399,31.71106274,89.818,89.749,31.62489722]
[1772615728001,31.71106274,89.816,89.751,10.027]
[1772615728504,31.71106274,89.795,89.721,31.62489722]
[1772615728999,31.71106274,89.795,89.7,4.55443019]
[1772615729000,31.71106274,89.795,89.724,31.62489722]
[1772615729305,31.71106274,89.815,89.724,31.62489722]
[1772615730194,31.71106274,89.815,89.743,31.62489722]
[1772615730195,10.02,89.812,89.743,31.62489722]
[1772615730599,31.71106274,89.815,89.743,31.62489722]
[1772615730801,41.73106274,89.813,89.743,31.62489722]
[1772615731799,10.019,89.824,89.748,31.62489722]
[1772615732601,10.019,89.824,89.756,31.62489722]
[1772615732999,10.017,89.844,89.761,31.62489722]
[1772615733511,31.71106274,89.843,89.761,31.62489722]
[1772615733802,31.71106274,89.843,89.78,31.62489722]
[1772615734000,10.015,89.855,89.78,36.17932741]
[1772615734196,31.71106274,89.876,89.78,36.17932741]
[1772615734398,31.71106274,89.869,89.78,31.62489722]
[1772615734604,31.71106274,89.819,89.731,31.62489722]
[1772615735202,31.71106274,89.819,89.72,4.55443019]
[1772615735203,31.71106274,89.819,89.75,31.62489722]
[1772615735806,10.02,89.809,89.75,31.62489722]
[1772615736105,124.0,89.86,89.75,31.62489722]
[1772615736304,124.0,89.86,89.657,468.434]
[1772615736305,31.71106274,89.859,89.77,31.62489722]
[1772615736900,31.71106274,89.826,89.751,31.62489722]
[1772615737104,31.71106274,89.826,89.732,31.62489722]
[1772615737399,124.0,89.86,89.732,31.62489722]
[1772615737400,31.71106274,89.819,89.732,31.62489722]
[1772615737603,31.71106274,89.802,89.732,31.62489722]
[1772615739007,31.71106274,89.785,89.712,31.62489722]
[1772615739810,31.71106274,89.819,89.725,31.62489722]
[1772615740306,10.022,89.794,89.726,31.62489722]
[1772615740706,31.71106274,89.796,89.726,31.62489722]
[1772615741611,10.022,89.795,89.726,31.62489722]
[1772615742905,31.71106274,89.796,89.726,31.62489722]
[1772615743106,31.71106274,89.787,89.726,31.62489722]
[1772615743703,10.024,89.78,89.726,31.62489722]
[1772615744006,31.71106274,89.787,89.726,31.62489722]
[1772615744413,31.71106274,89.787,89.691,31.62489722]
[1772615745205,155.832,89.838,89.694,31.62489722]
[1772615745206,4.53609261,89.8,89.694,31.62489722]
[1772615745410,155.865,89.819,89.694,31.62489722]